[Event "3rd VIZAG GM-Open 2022"]
[Site "Visakapatnam"]
[Date "2022.06.14"]
[Round "6.17"]
[White "Ajay Santhosh Parvathareddy"]
[Black "Baghdasaryan, Vahe"]
[Result "1/2-1/2"]
[ECO "D05"]
[WhiteElo "1563"]
[BlackElo "2267"]
[Annotator "TA"]
[PlyCount "87"]
[EventDate "2022.06.13"]
[EventType "swiss"]
[EventCountry "IND"]
[SourceTitle "playchess.com"]
[Source "ChessBase"]
[SourceQuality "1"]
[TimeControl "5400+30"]

{[%evp 11,87,0,0,0,5,0,0,-15,-10,-30,-28,-28,-23,-31,-29,-62,-43,-55,0,8,4,0,7,10,8,0,15,16,16,1,12,0,0,0,6,15,26,14,42,0,0,0,0,0,0,0,0,0,0,0,0,0,0,0,0,0,0,-54,-8,-45,-25,-45,-45,-45,-45,-80,-80,-89,-28,-78,-79,-79,-73,-101,-6,-6,0,0]} 1. d4 {[%emt 0:00:01]} e6 {[%emt 0:09:18]} 2. Nf3 {[%emt 0:00:06]} Nf6 {[%emt 0:04:16]} 3. e3 {[%emt 0:00:07]} b6 {[%emt 0:00:31]} 4. Bd3 {[%emt 0:00:24]} Bb7 {[%emt 0:00:11]} 5. Nbd2 {[%emt 0:00:08]} d5 {[%emt 0:02:36]} 6. O-O {[%emt 0:00:11]} Bd6 {[%emt 0:03:37]} 7. c4 {[%emt 0:08:42] D05: Colle System with ...e6.} O-O {[%emt 0:02:30]} 8. Qc2 {[%emt 0:01:26] 8.Qe2 gains popularity.} c5 {[%emt 0:02:21] [#]} 9. dxc5 $146 {[%emt 0:00:35]} ({Predecessor:} 9. e4 dxe4 10. Nxe4 Nxe4 11. Bxe4 Bxe4 12. Qxe4 Nd7 13. Rd1 Qc7 14. dxc5 Nxc5 15. Qe2 {½-½ (30) Gomez,J (2519)-Laznicka,V (2591) Dresden 2008}) 9... bxc5 {[%emt 0:00:31]} 10. e4 {[%emt 0:00:22] [#] Threatens to win with e5.} Nc6 {[%emt 0:01:58] Against e5. And now ...Nb4 would win.} 11. cxd5 {[%emt 0:01:17]} exd5 {[%emt 0:00:27]} 12. exd5 {[%emt 0:05:44]} Nb4 {[%emt 0:06:28]} ({Resist} 12... Nxd5 13. Bxh7+ Kh8 14. Bf5 $16) 13. Qb3 {[%emt 0:00:16]} Bxd5 {[%emt 0:06:08]} 14. Bc4 {[%emt 0:00:16]} Rb8 {[%emt 0:00:06]} (14... Bc6 $15) 15. Bxd5 $11 {[%emt 0:00:57]} Nbxd5 {[%emt 0:00:21]} 16. Qd1 {[%emt 0:00:42]} Qc7 {[%emt 0:23:19]} 17. Nc4 {[%emt 0:02:58]} Rfd8 {[%emt 0:00:06]} 18. Bg5 {[%emt 0:02:34]} Bf4 {[%emt 0:02:37]} 19. Bxf6 {[%emt 0:01:46]} Nxf6 {[%emt 0:00:07]} 20. Qc2 {[%emt 0:00:07]} Nd5 {[%emt 0:00:49]} 21. a3 {[%emt 0:01:28]} Nb6 {[%emt 0:06:00]} 22. b3 {[%emt 0:01:55]} Nd5 {[%emt 0:05:19]} 23. Rad1 {[%emt 0:01:41]} Bh6 {[%emt 0:01:10]} 24. Nce5 {[%emt 0:02:47]} g6 {[%emt 0:02:26]} 25. Qe4 {[%emt 0:09:24]} Nf4 {[%emt 0:08:43]} 26. Rxd8+ {[%emt 0:08:04]} Rxd8 {[%emt 0:02:33]} 27. Re1 {[%emt 0:04:00]} Ne6 {[%emt 0:01:41]} 28. Nxf7 {[%emt 0:00:48]} Qxf7 {[%emt 0:00:03]} 29. Qxe6 {[%emt 0:00:09]} (29. Qh4 {seems wilder.} Bf8 30. Rxe6 Rd1+ 31. Re1) 29... Qxe6 {[%emt 0:00:04]} 30. Rxe6 {[%emt 0:00:05][%mdl 4096] Endgame KRB-KRN} Rb8 {[%emt 0:03:27]} 31. Kf1 {[%emt 0:03:47]} Rxb3 {[%emt 0:00:13]} 32. Ra6 {[%emt 0:02:32]} c4 {[%emt 0:00:10]} 33. Rc6 {[%emt 0:01:53]} c3 {[%emt 0:01:25]} 34. Ke2 {[%emt 0:00:18]} (34. a4 $11) 34... Rxa3 {[%emt 0:00:53]} (34... Rb2+ $1 $15 35. Kd3 Rxf2) 35. Kd3 {[%emt 0:00:28]} Ra2 {[%emt 0:01:10]} (35... c2+ $5 36. Kxc2 Ra2+ 37. Kd3 Rxf2 $15) 36. Rxc3 {[%emt 0:00:20]} Rxf2 {[%emt 0:00:11]} 37. Rc8+ {[%emt 0:00:09]} Bf8 {[%emt 0:00:27]} 38. Ra8 {[%emt 0:02:15]} Rxg2 {[%emt 0:00:29]} 39. Rxa7 {[%emt 0:00:08]} Bd6 {[%emt 0:00:11]} (39... Rf2 $17 40. Ke4 Re2+ 41. Kd5 Bb4) 40. Ra8+ {[%emt 0:01:06]} (40. h4 $11 {keeps the balance.}) 40... Kg7 $17 {[%emt 0:00:28]} 41. h4 {[%emt 0:00:06]} Rg3 {[%emt 0:00:51]} 42. Ke2 {[%emt 0:01:45]} Bf4 {[%emt 0:03:00]} ({Black should try} 42... h5 $17 {next ...Bf4 is good for Black.} 43. Ra7+ Kf6) 43. Ra4 $11 {[%emt 0:00:46]} Rg4 {[%emt 0:01:51]} 44. Ng5 {[%emt 0:02:05] Weighted Error Value: White=0.11 (very precise) /Black=0.15 (very precise)} 1/2-1/2

[Event "3rd VIZAG GM-Open 2022"]
[Site "Visakapatnam"]
[Date "2022.06.14"]
[Round "6.18"]
[White "Jubin Jimmy"]
[Black "Aditya Varun Gampa"]
[Result "1/2-1/2"]
[ECO "E27"]
[WhiteElo "2259"]
[BlackElo "1836"]
[Annotator "TA"]
[PlyCount "78"]
[EventDate "2022.06.13"]
[EventType "swiss"]
[EventCountry "IND"]
[SourceTitle "playchess.com"]
[Source "ChessBase"]
[SourceQuality "1"]
[TimeControl "5400+30"]

{[%evp 11,78,-17,-6,-8,5,12,25,7,0,0,0,0,0,0,0,-33,-33,-25,-25,-30,-25,-24,-13,-25,0,-98,-104,-102,-95,-102,-91,-110,-112,-123,-114,-103,-105,-119,-121,-229,-229,-238,-237,-234,-235,-248,-215,-215,-212,-237,-173,-214,-184,-218,-180,-287,-281,-281,-270,-289,0,-42,-41,-48,0,0,0,0,0]} 1. d4 {[%emt 0:00:10]} Nf6 {[%emt 0:00:11]} 2. c4 {[%emt 0:00:08]} e6 {[%emt 0:00:04]} 3. Nc3 {[%emt 0:00:05]} Bb4 {[%emt 0:00:35]} 4. a3 {[%emt 0:00:13]} Bxc3+ {[%emt 0:00:36]} 5. bxc3 {[%emt 0:00:06]} O-O {[%emt 0:02:30]} 6. f3 {[%emt 0:00:40]} d6 {[%emt 0:03:49]} 7. e4 {[%emt 0:00:54] E27: Nimzo-Indian: Sämisch: 5...0-0 6 f3.} Nc6 {[%emt 0:01:55]} 8. Bd3 {[%emt 0:01:29]} e5 {[%emt 0:00:31]} 9. Be3 {[%emt 0:00:36] White has an edge.} b6 {[%emt 0:01:48]} 10. Ne2 {[%emt 0:07:11]} Ba6 {[%emt 0:01:51]} 11. Ng3 {[%emt 0:01:34]} Na5 {[%emt 0:04:17]} 12. Qe2 {[%emt 0:00:05]} Qe8 {[%emt 0:14:21]} 13. a4 {[%emt 0:06:59]} Qe6 {[%emt 0:04:12][%cal Ra6c4]} 14. d5 {[%emt 0:05:21]} Qe8 {[%emt 0:00:07]} 15. O-O {[%emt 0:01:18]} Nd7 {[%emt 0:00:04] [#]} 16. Rfb1 $146 {[%emt 0:09:42]} ({Predecessor:} 16. f4 exf4 17. Rxf4 Ne5 18. Bd4 Bxc4 19. Bxc4 Naxc4 20. Nf5 Ng6 21. Qxc4 Nxf4 22. Bxg7 Qd7 23. Rf1 Ng6 24. Bf6 Rfe8 25. Qe2 Qxa4 26. Qh5 {1-0 (26) Kis,B (2030)-Zelena,T (1899) Hungary 2018}) 16... Nc5 {[%emt 0:02:04]} 17. Bxc5 {[%emt 0:00:21]} bxc5 {[%emt 0:00:03]} 18. Rb5 {[%emt 0:03:37]} Bxb5 $17 {[%emt 0:00:18]} 19. axb5 {[%emt 0:00:20] [#]} Nb7 {[%emt 0:02:02][%cal Ba5b7,Bb7d8,Bd8f7][%mdl 32]} 20. Ra6 {[%emt 0:00:05]} f6 {[%emt 0:04:44]} 21. Qa2 {[%emt 0:02:46]} g6 {[%emt 0:03:09]} 22. Nf1 {[%emt 0:03:52]} Qd7 {[%emt 0:06:59]} 23. Ne3 {[%emt 0:00:25]} Nd8 {[%emt 0:09:05]} 24. Bc2 {[%emt 0:03:36]} Nf7 {[%emt 0:02:35]} 25. b6 {[%emt 0:07:48]} (25. Ng4 $17 Kg7 26. Ne3) 25... cxb6 $19 {[%emt 0:01:10]} 26. Ba4 {[%emt 0:00:02]} Qe7 {[%emt 0:05:30]} 27. Bc6 {[%emt 0:00:52]} Rac8 {[%emt 0:00:02]} 28. Rxa7 {[%emt 0:00:11]} Rc7 {[%emt 0:00:01]} 29. Ra6 {[%emt 0:00:58]} Rb8 {[%emt 0:00:03]} 30. Qa4 {[%emt 0:01:26]} Nd8 {[%emt 0:00:41]} 31. h3 {[%emt 0:01:28]} Kh8 {[%emt 0:05:01][%cal Of6f5]} 32. Kf2 {[%emt 0:01:19]} Qf8 {[%emt 0:01:43]} 33. Ke2 {[%emt 0:01:57]} (33. Bd7 $142) 33... f5 {[%emt 0:03:39]} 34. exf5 {[%emt 0:02:28]} gxf5 {[%emt 0:00:01]} 35. Ra7 {[%emt 0:00:23]} Qf7 {[%emt 0:03:40]} ({Black should play} 35... Rf7 $19 {...f4 is the strong threat.} 36. Rxf7 Qxf7) 36. Ra8 {[%emt 0:04:52]} Rxa8 {[%emt 0:02:39]} 37. Qxa8 {[%emt 0:00:20]} Qg8 {[%emt 0:00:12]} (37... Qf6 $1 $15 {was preferrable.} 38. Nxf5 Rf7) 38. Qb8 $11 {[%emt 0:02:53]} Rg7 {[%emt 0:01:40] [#] Hoping for ...f4.} 39. Qxd6 {[%emt 0:01:15]} Rxg2+ {[%emt 0:00:19] Weighted Error Value: White=0.23 (precise) /Black=0.17 (very precise)} 1/2-1/2

[Event "3rd VIZAG GM-Open 2022"]
[Site "Visakapatnam"]
[Date "2022.06.14"]
[Round "7.1"]
[White "Audi Ameya"]
[Black "Amonatov, Farrukh"]
[Result "1/2-1/2"]
[ECO "B90"]
[WhiteElo "2389"]
[BlackElo "2622"]
[Annotator "RC"]
[PlyCount "66"]
[EventDate "2022.06.13"]
[EventType "swiss"]
[EventCountry "IND"]
[SourceTitle "playchess.com"]
[Source "ChessBase"]
[SourceQuality "1"]
[TimeControl "5400+30"]

1. e4 {[%emt 0:00:02]} c5 {[%emt 0:00:07]} 2. Nf3 {[%emt 0:00:03]} d6 {[%emt 0:00:06]} 3. d4 {[%emt 0:00:03]} cxd4 {[%emt 0:00:07]} 4. Nxd4 {[%emt 0:00:03]} Nf6 {[%emt 0:00:10]} 5. Nc3 {[%emt 0:00:03]} a6 {[%emt 0:00:08]} 6. f3 {[%emt 0:00:02]} e5 {[%emt 0:00:10]} 7. Nb3 {[%emt 0:00:03]} Be6 {[%emt 0:00:16]} 8. Be3 {[%emt 0:00:03]} Be7 {[%emt 0:00:10]} 9. Qd2 {[%emt 0:00:03]} O-O {[%emt 0:00:17]} 10. O-O-O {[%emt 0:00:04]} a5 {[%emt 0:00:26]} 11. a4 {[%emt 0:01:08]} Nc6 {[%emt 0:02:50]} 12. g4 {[%emt 0:00:52]} Nb4 {[%emt 0:00:21]} 13. g5 {[%emt 0:05:18]} Nh5 {[%emt 0:00:36]} 14. Kb1 {[%emt 0:11:21]} Rc8 {[%emt 0:08:41]} 15. Nc1 {[%emt 0:02:17]} d5 {[%emt 0:12:11]} 16. exd5 {[%emt 0:00:20]} Bf5 {[%emt 0:00:10]} 17. Bd3 {[%emt 0:14:31]} Bxd3 {[%emt 0:05:26]} 18. Nxd3 {[%emt 0:00:03]} Nxd5 {[%emt 0:00:09]} 19. Nb5 {[%emt 0:05:35]} Nxe3 {[%emt 0:07:17]} 20. Qxe3 {[%emt 0:00:03]} Bxg5 {[%emt 0:00:15]} 21. Qe4 {[%emt 0:02:08]} Qe7 {[%emt 0:08:20]} 22. Nxe5 {[%emt 0:00:36]} Bf4 {[%emt 0:04:39]} 23. Rhe1 {[%emt 0:15:55]} Rfd8 {[%emt 0:15:22]} 24. Qf5 {[%emt 0:05:01]} Rxd1+ {[%emt 0:07:01]} 25. Rxd1 {[%emt 0:00:02]} Qe6 {[%emt 0:00:10]} 26. Qxe6 {[%emt 0:11:13]} fxe6 {[%emt 0:00:47]} 27. Nd3 {[%emt 0:00:02]} Rd8 {[%emt 0:17:02]} 28. Re1 {[%emt 0:02:52]} b6 {[%emt 0:04:40]} 29. Nxf4 {[%emt 0:09:18]} Nxf4 {[%emt 0:00:01]} 30. Re4 {[%emt 0:00:06]} Rf8 {[%emt 0:02:37]} 31. Nc7 {[%emt 0:02:59]} Nd5 {[%emt 0:01:23]} 32. Nxd5 {[%emt 0:05:59]} exd5 {[%emt 0:00:01]} 33. Re6 {[%emt 0:00:03]} Rf6 {[%emt 0:00:55]} 1/2-1/2

[Event "3rd VIZAG GM-Open 2022"]
[Site "Visakapatnam"]
[Date "2022.06.14"]
[Round "7.2"]
[White "Stupak, Kirill"]
[Black "Harsha Bharathakoti"]
[Result "1/2-1/2"]
[ECO "D30"]
[WhiteElo "2440"]
[BlackElo "2547"]
[Annotator "RC"]
[PlyCount "60"]
[EventDate "2022.06.13"]
[EventType "swiss"]
[EventCountry "IND"]
[SourceTitle "playchess.com"]
[Source "ChessBase"]
[SourceQuality "1"]
[TimeControl "5400+30"]

1. d4 {[%emt 0:00:03]} Nf6 {[%emt 0:01:43]} 2. c4 {[%emt 0:00:02]} e6 {[%emt 0:00:26]} 3. Nf3 {[%emt 0:01:11]} d5 {[%emt 0:00:31]} 4. Bg5 {[%emt 0:01:27]} dxc4 {[%emt 0:07:09]} 5. Qa4+ {[%emt 0:00:05]} Nbd7 {[%emt 0:02:36]} 6. e3 {[%emt 0:00:05]} a6 {[%emt 0:03:42]} 7. Bxc4 {[%emt 0:03:02]} Be7 {[%emt 0:14:29]} 8. Be2 {[%emt 0:04:29]} O-O {[%emt 0:01:42]} 9. Qc2 {[%emt 0:08:00]} b6 {[%emt 0:12:01]} 10. O-O {[%emt 0:01:42]} Bb7 {[%emt 0:00:03]} 11. Nc3 {[%emt 0:00:07]} h6 {[%emt 0:02:53]} 12. Bh4 {[%emt 0:00:35]} c5 {[%emt 0:05:44]} 13. Rfd1 {[%emt 0:00:19]} Qc7 {[%emt 0:05:29]} 14. Bg3 {[%emt 0:11:53]} Bd6 {[%emt 0:07:26]} 15. Bxd6 {[%emt 0:06:14]} Qxd6 {[%emt 0:00:37]} 16. Rac1 {[%emt 0:03:30]} Rac8 {[%emt 0:01:34]} 17. dxc5 {[%emt 0:01:38]} Qxc5 {[%emt 0:00:06]} 18. Qd2 {[%emt 0:00:19]} Qe7 {[%emt 0:04:12]} 19. Qd6 {[%emt 0:13:55]} Qxd6 {[%emt 0:08:35]} 20. Rxd6 {[%emt 0:00:08]} Rc7 {[%emt 0:00:03]} 21. Rcd1 {[%emt 0:00:12]} Rfc8 {[%emt 0:01:45]} 22. Ne1 {[%emt 0:01:09]} Kf8 {[%emt 0:02:31]} 23. Bf3 {[%emt 0:00:21]} Bxf3 {[%emt 0:01:07]} 24. Nxf3 {[%emt 0:00:34]} Ke7 {[%emt 0:00:03]} 25. Kf1 {[%emt 0:03:47]} Rc6 {[%emt 0:03:45]} 26. Rxc6 {[%emt 0:00:42]} Rxc6 {[%emt 0:00:03]} 27. Ke2 {[%emt 0:00:09]} b5 {[%emt 0:01:07]} 28. a3 {[%emt 0:04:03]} g5 {[%emt 0:02:57]} 29. h3 {[%emt 0:01:22]} Rc7 {[%emt 0:00:04]} 30. Rc1 {[%emt 0:00:28]} Rc5 {[%emt 0:01:06]} 1/2-1/2

[Event "3rd VIZAG GM-Open 2022"]
[Site "Visakapatnam"]
[Date "2022.06.14"]
[Round "7.3"]
[White "Gusain, Himal"]
[Black "Konguvel, Ponnuswamy"]
[Result "1-0"]
[ECO "E60"]
[WhiteElo "2396"]
[BlackElo "2331"]
[Annotator "RC"]
[PlyCount "141"]
[EventDate "2022.06.13"]
[EventType "swiss"]
[EventCountry "IND"]
[SourceTitle "playchess.com"]
[Source "ChessBase"]
[SourceQuality "1"]
[TimeControl "5400+30"]

1. Nf3 {[%emt 0:04:17]} Nf6 {[%emt 0:00:35]} 2. b3 {[%emt 0:01:03]} g6 {[%emt 0:04:15]} 3. Bb2 {[%emt 0:00:12]} Bg7 {[%emt 0:00:04]} 4. g3 {[%emt 0:00:09]} O-O {[%emt 0:02:47]} 5. Bg2 {[%emt 0:00:17]} c5 {[%emt 0:01:00]} 6. c4 {[%emt 0:00:22]} Nc6 {[%emt 0:00:06]} 7. O-O {[%emt 0:00:24]} d6 {[%emt 0:00:21]} 8. d4 {[%emt 0:00:09]} cxd4 {[%emt 0:04:20]} 9. Nxd4 {[%emt 0:00:10]} Bd7 {[%emt 0:00:51]} 10. Nc2 {[%emt 0:09:28]} Qc8 {[%emt 0:13:25]} 11. Re1 {[%emt 0:05:25]} Bh3 {[%emt 0:00:23]} 12. Bh1 {[%emt 0:03:01]} a6 {[%emt 0:11:49]} 13. Nc3 {[%emt 0:00:48]} Rb8 {[%emt 0:00:04]} 14. Ne3 {[%emt 0:01:47]} Ne5 {[%emt 0:07:28]} 15. Ncd5 {[%emt 0:05:54]} Nxd5 {[%emt 0:00:48]} 16. Nxd5 {[%emt 0:00:06]} Re8 {[%emt 0:00:08]} 17. a4 {[%emt 0:00:43]} a5 {[%emt 0:06:18]} 18. Qd2 {[%emt 0:05:02]} Qc5 {[%emt 0:02:28]} 19. Nf4 {[%emt 0:06:57]} Bf5 {[%emt 0:01:31]} 20. Nd5 {[%emt 0:05:06]} Bh3 {[%emt 0:12:29]} 21. Bg2 {[%emt 0:09:27]} Bxg2 {[%emt 0:00:39]} 22. Kxg2 {[%emt 0:00:17]} Ng4 {[%emt 0:06:53]} 23. e4 {[%emt 0:04:14]} e6 {[%emt 0:05:03]} 24. Bxg7 {[%emt 0:00:13]} Kxg7 {[%emt 0:00:11]} 25. Qc3+ {[%emt 0:06:10]} Ne5 {[%emt 0:00:19]} 26. Ne3 {[%emt 0:00:11]} Kg8 {[%emt 0:04:33]} 27. f4 {[%emt 0:03:54]} Nd7 {[%emt 0:00:04]} 28. Rad1 {[%emt 0:00:52]} Qb4 {[%emt 0:01:49]} 29. Qxb4 {[%emt 0:13:43]} axb4 {[%emt 0:00:01]} 30. Nc2 {[%emt 0:00:10]} Nc5 {[%emt 0:00:21]} 31. Rb1 {[%emt 0:00:15]} Na6 {[%emt 0:03:47]} 32. Red1 {[%emt 0:00:05]} Red8 {[%emt 0:00:05]} 33. Kf3 {[%emt 0:02:24]} Kf8 {[%emt 0:01:11]} 34. Ne1 {[%emt 0:00:20]} Rbc8 {[%emt 0:00:57]} 35. Nd3 {[%emt 0:00:35]} d5 {[%emt 0:00:18]} 36. exd5 {[%emt 0:00:59]} exd5 {[%emt 0:00:05]} 37. cxd5 {[%emt 0:00:10]} Rxd5 {[%emt 0:00:35]} 38. Ne5 {[%emt 0:02:23]} Rc3+ {[%emt 0:00:38]} 39. Kg4 {[%emt 0:00:05]} Nc7 {[%emt 0:00:50]} 40. Nd7+ {[%emt 0:01:22]} Kg7 {[%emt 0:00:51]} 41. Nb6 {[%emt 0:00:51]} Rh5 {[%emt 0:04:59]} 42. h4 {[%emt 0:00:46]} Rf5 {[%emt 0:00:05]} 43. Rdc1 {[%emt 0:06:20]} h5+ {[%emt 0:00:30]} 44. Kh3 {[%emt 0:00:03]} Rfc5 {[%emt 0:01:10]} 45. Nc4 {[%emt 0:01:04]} b5 {[%emt 0:02:25]} 46. axb5 {[%emt 0:00:05]} Nxb5 {[%emt 0:00:02]} 47. Rd1 {[%emt 0:01:46]} Rf5 {[%emt 0:01:33]} 48. Kg2 {[%emt 0:00:44]} Rc2+ {[%emt 0:00:04]} 49. Kf3 {[%emt 0:01:51]} Rc3+ {[%emt 0:02:02]} 50. Kf2 {[%emt 0:00:08]} Rc2+ {[%emt 0:00:10]} 51. Kf3 {[%emt 0:01:06]} Nc3 {[%emt 0:00:45]} 52. Ne3 {[%emt 0:00:08]} Nxd1 {[%emt 0:01:10]} 53. Nxc2 {[%emt 0:00:11]} Nc3 {[%emt 0:00:17]} 54. Re1 {[%emt 0:01:30]} Rb5 {[%emt 0:00:37]} 55. Re5 {[%emt 0:00:34]} Rb6 {[%emt 0:00:44]} 56. Rc5 {[%emt 0:00:14]} Nb1 {[%emt 0:00:39]} 57. Ke3 {[%emt 0:00:38]} Na3 {[%emt 0:00:07]} 58. Nd4 {[%emt 0:00:18]} Rb7 {[%emt 0:00:52]} 59. f5 {[%emt 0:01:01]} Re7+ {[%emt 0:00:28]} 60. Kd3 {[%emt 0:00:22]} Re1 {[%emt 0:00:06]} 61. fxg6 {[%emt 0:00:11]} fxg6 {[%emt 0:00:11]} 62. Rc7+ {[%emt 0:00:21]} Kf6 {[%emt 0:00:18]} 63. Rc6+ {[%emt 0:00:06]} Kf7 {[%emt 0:00:07]} 64. Rb6 {[%emt 0:00:14]} Rg1 {[%emt 0:00:48]} 65. Ne2 {[%emt 0:01:40]} Rd1+ {[%emt 0:00:06]} 66. Ke4 {[%emt 0:00:03]} Nc2 {[%emt 0:00:11]} 67. Nf4 {[%emt 0:00:13]} Re1+ {[%emt 0:02:02]} 68. Kd3 {[%emt 0:00:15]} Ne3 {[%emt 0:00:49]} 69. Kd2 {[%emt 0:00:27]} Rb1 {[%emt 0:00:44]} 70. Kxe3 {[%emt 0:00:09]} Rxb3+ {[%emt 0:00:03]} 71. Nd3 {[%emt 0:00:04]} 1-0

[Event "3rd VIZAG GM-Open 2022"]
[Site "Visakapatnam"]
[Date "2022.06.14"]
[Round "7.4"]
[White "Paichadze, Luka"]
[Black "Laxman, R.R."]
[Result "1-0"]
[ECO "C67"]
[WhiteElo "2567"]
[BlackElo "2420"]
[Annotator "RC"]
[PlyCount "69"]
[EventDate "2022.06.13"]
[EventType "swiss"]
[EventCountry "IND"]
[SourceTitle "playchess.com"]
[Source "ChessBase"]
[SourceQuality "1"]
[TimeControl "5400+30"]

1. e4 {[%emt 0:00:03]} e5 {[%emt 0:00:04]} 2. Nf3 {[%emt 0:01:23]} Nc6 {[%emt 0:00:06]} 3. Bb5 {[%emt 0:00:03]} Nf6 {[%emt 0:00:09]} 4. O-O {[%emt 0:00:10]} Nxe4 {[%emt 0:00:06]} 5. Re1 {[%emt 0:00:32]} Nd6 {[%emt 0:00:06]} 6. Nxe5 {[%emt 0:00:16]} Be7 {[%emt 0:00:26]} 7. Bf1 {[%emt 0:00:16]} Nf5 {[%emt 0:00:58]} 8. c3 {[%emt 0:01:56]} Nxe5 {[%emt 0:01:01]} 9. Rxe5 {[%emt 0:00:05]} d6 {[%emt 0:00:05]} 10. Re1 {[%emt 0:00:42]} O-O {[%emt 0:00:12]} 11. d4 {[%emt 0:00:10]} d5 {[%emt 0:00:11]} 12. Nd2 {[%emt 0:04:17]} c6 {[%emt 0:01:38]} 13. Nf3 {[%emt 0:05:16]} g6 {[%emt 0:00:23]} 14. Bf4 {[%emt 0:02:16]} Bd6 {[%emt 0:02:01]} 15. Qd2 {[%emt 0:05:17]} Bxf4 {[%emt 0:00:20]} 16. Qxf4 {[%emt 0:00:05]} Qd6 {[%emt 0:00:13]} 17. Qd2 {[%emt 0:07:49]} Ng7 {[%emt 0:02:31]} 18. b3 {[%emt 0:05:07]} Bg4 {[%emt 0:06:01]} 19. Ne5 {[%emt 0:00:39]} Be6 {[%emt 0:00:39]} 20. h3 {[%emt 0:02:24]} f6 {[%emt 0:02:43]} 21. Nf3 {[%emt 0:01:14]} Rfe8 {[%emt 0:05:02]} 22. c4 {[%emt 0:01:50]} Bf7 {[%emt 0:01:07]} 23. c5 {[%emt 0:02:37]} Qc7 {[%emt 0:00:06]} 24. b4 {[%emt 0:00:26]} Rxe1 {[%emt 0:03:05]} 25. Nxe1 {[%emt 0:00:30]} g5 {[%emt 0:01:02]} 26. a4 {[%emt 0:02:13]} Bg6 {[%emt 0:00:21]} 27. b5 {[%emt 0:00:39]} Ne6 {[%emt 0:04:53]} 28. a5 {[%emt 0:02:22]} cxb5 {[%emt 0:01:00]} 29. Bxb5 {[%emt 0:00:06]} Be8 {[%emt 0:00:49]} 30. Be2 {[%emt 0:04:12]} Qf4 {[%emt 0:00:13]} 31. Qxf4 {[%emt 0:00:36]} Nxf4 {[%emt 0:00:35]} 32. Bf3 {[%emt 0:01:16]} Bc6 {[%emt 0:00:06]} 33. Nc2 {[%emt 0:01:06]} Kf7 {[%emt 0:00:30]} 34. a6 {[%emt 0:07:19]} Ke7 {[%emt 0:00:09]} 35. Nb4 {[%emt 0:00:47]} 1-0

[Event "3rd VIZAG GM-Open 2022"]
[Site "Visakapatnam"]
[Date "2022.06.14"]
[Round "7.5"]
[White "Savchenko, Boris"]
[Black "Subhayan Kundu"]
[Result "1-0"]
[ECO "E73"]
[WhiteElo "2524"]
[BlackElo "2323"]
[Annotator "RC"]
[PlyCount "69"]
[EventDate "2022.06.13"]
[EventType "swiss"]
[EventCountry "IND"]
[SourceTitle "playchess.com"]
[Source "ChessBase"]
[SourceQuality "1"]
[TimeControl "5400+30"]

1. d4 {[%emt 0:00:10]} Nf6 {[%emt 0:00:45]} 2. c4 {[%emt 0:00:34]} g6 {[%emt 0:00:19]} 3. Nc3 {[%emt 0:00:07]} Bg7 {[%emt 0:00:06]} 4. e4 {[%emt 0:00:06]} d6 {[%emt 0:00:07]} 5. Be2 {[%emt 0:00:05]} O-O {[%emt 0:00:16]} 6. Be3 {[%emt 0:00:07]} e5 {[%emt 0:01:08]} 7. d5 {[%emt 0:00:09]} a5 {[%emt 0:07:51]} 8. g4 {[%emt 0:00:17]} Na6 {[%emt 0:01:53]} 9. g5 {[%emt 0:03:13]} Ne8 {[%emt 0:05:15]} 10. h4 {[%emt 0:00:21]} f5 {[%emt 0:00:17]} 11. gxf6 {[%emt 0:00:12]} Nxf6 {[%emt 0:04:28]} 12. h5 {[%emt 0:00:42]} Nc5 {[%emt 0:01:04]} 13. hxg6 {[%emt 1:30:57]} hxg6 {[%emt 0:01:04]} 14. Bxc5 {[%emt 0:00:00]} dxc5 {[%emt 0:00:01]} 15. Qd3 {[%emt 0:00:00]} Nh7 {[%emt 0:07:16]} 16. Qe3 {[%emt 0:00:00]} Qg5 {[%emt 0:08:09]} 17. Nb5 {[%emt 0:00:00]} Qxe3 {[%emt 0:23:19]} 18. fxe3 {[%emt 0:00:00]} Ng5 {[%emt 0:00:28]} 19. Nxc7 {[%emt 0:00:00]} Ra7 {[%emt 0:01:03]} 20. Rh2 {[%emt 0:00:00]} Nxe4 {[%emt 0:02:56]} 21. Bd3 {[%emt 0:00:00]} Ng3 {[%emt 0:13:07]} 22. Rg2 {[%emt 0:00:00]} e4 {[%emt 0:00:11]} 23. Rxg3 {[%emt 0:00:00]} exd3 {[%emt 0:00:03]} 24. Rxg6 {[%emt 0:00:00]} b6 {[%emt 0:03:21]} 25. d6 {[%emt 0:00:00]} Bf5 {[%emt 0:01:59]} 26. Rg2 {[%emt 0:00:00]} Be4 {[%emt 0:05:09]} 27. Rg4 {[%emt 0:00:00]} Bf5 {[%emt 0:00:12]} 28. Rg5 {[%emt 0:00:00]} Kh7 {[%emt 0:00:55]} 29. Kd2 {[%emt 0:00:00]} Bh6 {[%emt 0:00:50]} 30. Rg2 {[%emt 0:00:00]} Be4 {[%emt 0:01:28]} 31. Rh2 {[%emt 0:00:00]} Rf6 {[%emt 0:02:49]} 32. Nh3 {[%emt 0:00:56]} Bc6 {[%emt 0:02:32]} 33. Rg1 {[%emt 0:02:05]} Rxd6 {[%emt 0:00:07]} 34. Ng5+ {[%emt 0:00:24]} Kg6 {[%emt 0:00:37]} 35. Ne4+ {[%emt 0:00:20]} 1-0